{"text_format":"1","workbook":"xlsx","n_sheets":6,"sheets":["Dashboard","Ayuda y Version","pBlock","pAccel0","pAccel1","empresa_ccaa"],"not_rendered":{"charts":12,"images":7,"macros":1,"external_links":0,"defined_names":6,"comments":0,"pivot_tables":0},"unopened":[],"bounds":{"document_bytes":16777216,"sheet_cells":100000,"rows_first":2000,"rows_last":500,"rows_between":2000,"halvings":0,"cell_chars":16384,"cell_head_chars":4096},"cells_cut":0,"cells_raw":0,"read":"whole","date_system":"1900"}

{"sheet":"Dashboard","index":0,"n_rows":49,"n_cols":283,"rows_kept":49,"cut":false,"hidden":false,"merged":[]}
[]
[]
[null,null,null,null,null,null,null,null,null,null,null,null,2021]
[null,null,null,null,null,null,null,null,null,null,null,null,"OCTUBRE"]
["Acumulado a:",{"$f":"M4","v":"OCTUBRE"},null,null,"Datos acumulados",null,"Cuota Negocio / Total ASEMPLEO",null,null,{"$f":"empresa_ccaa!L5","v":"iEMPRESA"},null,"¿▲\"sin\" mi Empresa?"]
["Total","Facturación, €",null,"(a)",{"$f":"J5","v":"iEMPRESA"},null,null,null,"Cuota de Facturación","∆",null,"(b)","∆ (a-b)"]
[null,2020,2021,"% i.a.",{"$f":"B7","v":2020},{"$f":"C7","v":2021},"% i.a.",{"$f":"E7","v":2020},{"$f":"F7","v":2021},"Dif.P.P.",null,"% i.a.","Dif.P.P."]
["Nacional",2787417360.0466928,3286195886.5747566,{"$f":"((C8/B8)-1)","v":0.17893930549378112},{"$f":"empresa_ccaa!K12","v":0},{"$f":"empresa_ccaa!L12","v":0},{"$f":"IF(E8>0,((F8/E8)-1),\"n.a.\")","v":"n.a."},{"$f":"E8/B8","v":0},{"$f":"F8/C8","v":0},{"$f":"(I8-H8)*100","v":0},null,{"$f":"((C8-F8)/(B8-E8))-1","v":0.17893930549378112},{"$f":"(D8-L8)*100","v":0},null,null,null,null,null,null,null,null,null,null,null,null,null,null,null,null,null,null,null,null,null,null,null,null,null,null,null,null,null,null,null,null,null,null,null,null,null,null,null,null,null,null,null,null,null,null,null,null,null,null,null,null,null,null,null,null,null,null,null,null,null,null,null,null,null,null,null,null,null,null,null,null,null,null,null,null,null,null,null,null,null,null,null,null,null,null,null,null,null,null,null,null,null,null,null,null,null,null,null,null,null,null,null,null,null,null,null,null,null,null,null,null,null,null,null,null,null,null,null,null,null,null,null,null,null,null,null,null,null,null,null,null,null,null,null,null,null,null,null,null,null,null,null,null,null,null,null,null,null,null,null,null,null,null,null,null,null,null,null,null,null,null,null,null,null,null,null,null,null,null,null,null,null,null,null,null,null,null,null,null,null,null,null,null,null,null,null,null,null,null,null,null,null,null,null,null,null,null,null,null,null,null,null,null,null,null,null,null,null,null,null,null,null,null,null,null,null,null,null,null,null,null,null,null,null,null,null,null,null,null,null,null,null,null,null,null,null,null,null,null,null,null,null,null,null,null,null,null,null,null,null,null,null,null,null,null,null,null,null,null,null,null,"Empresa - Sector","Empresa - Sector"]
["ANDALUCIA",254583363.06816009,320831171.87758112,{"$f":"((C9/B9)-1)","v":0.26022049520841772},{"$f":"empresa_ccaa!K13","v":0},{"$f":"empresa_ccaa!L13","v":0},"n.a.",{"$f":"E9/B9","v":0},{"$f":"F9/C9","v":0},{"$f":"(I9-H9)*100","v":0},null,{"$f":"((C9-F9)/(B9-E9))-1","v":0.26022049520841772},0,null,null,null,null,null,null,null,null,null,null,null,null,null,null,null,null,null,null,null,null,null,null,null,null,null,null,null,null,null,null,null,null,null,null,null,null,null,null,null,null,null,null,null,null,null,null,null,null,null,null,null,null,null,null,null,null,null,null,null,null,null,null,null,null,null,null,null,null,null,null,null,null,null,null,null,null,null,null,null,null,null,null,null,null,null,null,null,null,null,null,null,null,null,null,null,null,null,null,null,null,null,null,null,null,null,null,null,null,null,null,null,null,null,null,null,null,null,null,null,null,null,null,null,null,null,null,null,null,null,null,null,null,null,null,null,null,null,null,null,null,null,null,null,null,null,null,null,null,null,null,null,null,null,null,null,null,null,null,null,null,null,null,null,null,null,null,null,null,null,null,null,null,null,null,null,null,null,null,null,null,null,null,null,null,null,null,null,null,null,null,null,null,null,null,null,null,null,null,null,null,null,null,null,null,null,null,null,null,null,null,null,null,null,null,null,null,null,null,null,null,null,null,null,null,null,null,null,null,null,null,null,null,null,null,null,null,null,null,null,null,null,null,null,null,null,null,null,null,null,null,null,null,null,null,null,null,null,null,null,null,null,null,null,"p.p."]
["ARAGON",130608889.6573993,164530787.39375657,{"$f":"((C10/B10)-1)","v":0.25972120140779031},{"$f":"empresa_ccaa!K14","v":0},{"$f":"empresa_ccaa!L14","v":0},"n.a.",0,0,0,null,0.25972120140779031,0,null,null,null,null,null,null,null,null,null,null,null,null,null,null,null,null,null,null,null,null,null,null,null,null,null,null,null,null,null,null,null,null,null,null,null,null,null,null,null,null,null,null,null,null,null,null,null,null,null,null,null,null,null,null,null,null,null,null,null,null,null,null,null,null,null,null,null,null,null,null,null,null,null,null,null,null,null,null,null,null,null,null,null,null,null,null,null,null,null,null,null,null,null,null,null,null,null,null,null,null,null,null,null,null,null,null,null,null,null,null,null,null,null,null,null,null,null,null,null,null,null,null,null,null,null,null,null,null,null,null,null,null,null,null,null,null,null,null,null,null,null,null,null,null,null,null,null,null,null,null,null,null,null,null,null,null,null,null,null,null,null,null,null,null,null,null,null,null,null,null,null,null,null,null,null,null,null,null,null,null,null,null,null,null,null,null,null,null,null,null,null,null,null,null,null,null,null,null,null,null,null,null,null,null,null,null,null,null,null,null,null,null,null,null,null,null,null,null,null,null,null,null,null,null,null,null,null,null,null,null,null,null,null,null,null,null,null,null,null,null,null,null,null,null,null,null,null,null,null,null,null,null,null,null,null,null,null,null,null,null,null,null,null,"Puntos porcentuales"]
["ASTURIAS",51537167.056635179,63135218.515403636,0.22504247169859259,{"$f":"empresa_ccaa!K15","v":0},{"$f":"empresa_ccaa!L15","v":0},"n.a.",0,0,0,null,0.22504247169859259,0,null,null,null,null,null,null,null,null,null,null,null,null,null,null,null,null,null,null,null,null,null,null,null,null,null,null,null,null,null,null,null,null,null,null,null,null,null,null,null,null,null,null,null,null,null,null,null,null,null,null,null,null,null,null,null,null,null,null,null,null,null,null,null,null,null,null,null,null,null,null,null,null,null,null,null,null,null,null,null,null,null,null,null,null,null,null,null,null,null,null,null,null,null,null,null,null,null,null,null,null,null,null,null,null,null,null,null,null,null,null,null,null,null,null,null,null,null,null,null,null,null,null,null,null,null,null,null,null,null,null,null,null,null,null,null,null,null,null,null,null,null,null,null,null,null,null,null,null,null,null,null,null,null,null,null,null,null,null,null,null,null,null,null,null,null,null,null,null,null,null,null,null,null,null,null,null,null,null,null,null,null,null,null,null,null,null,null,null,null,null,null,null,null,null,null,null,null,null,null,null,null,null,null,null,null,null,null,null,null,null,null,null,null,null,null,null,null,null,null,null,null,null,null,null,null,null,null,null,null,null,null,null,null,null,null,null,null,null,null,null,null,null,null,null,null,null,null,null,null,null,null,null,null,null,null,null,null,null,null,null,null,null,"Dif. Ritmo","Importancia Relativa",null,null,"Empresa"]
["BALEARES",5996077.8241597814,11742268.59913416,0.95832491563425992,{"$f":"empresa_ccaa!K16","v":0},{"$f":"empresa_ccaa!L16","v":0},{"$f":"IF(E12>0,((F12/E12)-1),\"n.a.\")","v":"n.a."},0,0,0,null,0.95832491563425992,0,null,null,null,null,null,null,null,null,null,null,null,null,null,null,null,null,null,null,null,null,null,null,null,null,null,null,null,null,null,null,null,null,null,null,null,null,null,null,null,null,null,null,null,null,null,null,null,null,null,null,null,null,null,null,null,null,null,null,null,null,null,null,null,null,null,null,null,null,null,null,null,null,null,null,null,null,null,null,null,null,null,null,null,null,null,null,null,null,null,null,null,null,null,null,null,null,null,null,null,null,null,null,null,null,null,null,null,null,null,null,null,null,null,null,null,null,null,null,null,null,null,null,null,null,null,null,null,null,null,null,null,null,null,null,null,null,null,null,null,null,null,null,null,null,null,null,null,null,null,null,null,null,null,null,null,null,null,null,null,null,null,null,null,null,null,null,null,null,null,null,null,null,null,null,null,null,null,null,null,null,null,null,null,null,null,null,null,null,null,null,null,null,null,null,null,null,null,null,null,null,null,null,null,null,null,null,null,null,null,null,null,null,null,null,null,null,null,null,null,null,null,null,null,null,null,null,null,null,null,null,null,null,null,null,null,null,null,null,null,null,null,null,null,null,null,null,null,null,null,null,null,null,null,null,null,null,null,null,null,null,null,null,{"$f":"IF(G8=\"n.a.\",\"n.a.\",(G8-D8)*100)","v":"n.a."},{"$f":"empresa_ccaa!M12-empresa_ccaa!H12","v":{"$error":"#DIV/0!"}},null,"criterio_rank","peso","Comunidad","% i.a.","Total_Regional"]
["CANARIAS",42183954.010675192,43579040.057753637,3.3071486061392097E-2,{"$f":"empresa_ccaa!K17","v":0},{"$f":"empresa_ccaa!L17","v":0},"n.a.",0,0,0,null,3.3071486061392097E-2,0,null,null,null,null,null,null,null,null,null,null,null,null,null,null,null,null,null,null,null,null,null,null,null,null,null,null,null,null,null,null,null,null,null,null,null,null,null,null,null,null,null,null,null,null,null,null,null,null,null,null,null,null,null,null,null,null,null,null,null,null,null,null,null,null,null,null,null,null,null,null,null,null,null,null,null,null,null,null,null,null,null,null,null,null,null,null,null,null,null,null,null,null,null,null,null,null,null,null,null,null,null,null,null,null,null,null,null,null,null,null,null,null,null,null,null,null,null,null,null,null,null,null,null,null,null,null,null,null,null,null,null,null,null,null,null,null,null,null,null,null,null,null,null,null,null,null,null,null,null,null,null,null,null,null,null,null,null,null,null,null,null,null,null,null,null,null,null,null,null,null,null,null,null,null,null,null,null,null,null,null,null,null,null,null,null,null,null,null,null,null,null,null,null,null,null,null,null,null,null,null,null,null,null,null,null,null,null,null,null,null,null,null,null,null,null,null,null,null,null,null,null,null,null,null,null,null,null,null,null,null,null,null,null,null,null,null,null,null,null,null,null,null,null,null,null,null,null,null,null,null,null,null,null,null,null,null,null,null,null,null,null,null,{"$f":"IF(G9=\"n.a.\",\"n.a.\",(G9-D9)*100)","v":"n.a."},{"$f":"empresa_ccaa!M13-empresa_ccaa!H13","v":{"$error":"#DIV/0!"}},null,{"$f":"IF(JT13=$JT$31,1,0)","v":1},{"$f":"I9","v":0},{"$f":"A9","v":"ANDALUCIA"},{"$f":"G9","v":"n.a."},{"$f":"D9","v":0.26022049520841772}]
["CANTABRIA",71937947.579828739,87811301.959478334,0.22065342303566715,{"$f":"empresa_ccaa!K18","v":0},{"$f":"empresa_ccaa!L18","v":0},"n.a.",0,0,0,null,0.22065342303566715,0,null,null,null,null,null,null,null,null,null,null,null,null,null,null,null,null,null,null,null,null,null,null,null,null,null,null,null,null,null,null,null,null,null,null,null,null,null,null,null,null,null,null,null,null,null,null,null,null,null,null,null,null,null,null,null,null,null,null,null,null,null,null,null,null,null,null,null,null,null,null,null,null,null,null,null,null,null,null,null,null,null,null,null,null,null,null,null,null,null,null,null,null,null,null,null,null,null,null,null,null,null,null,null,null,null,null,null,null,null,null,null,null,null,null,null,null,null,null,null,null,null,null,null,null,null,null,null,null,null,null,null,null,null,null,null,null,null,null,null,null,null,null,null,null,null,null,null,null,null,null,null,null,null,null,null,null,null,null,null,null,null,null,null,null,null,null,null,null,null,null,null,null,null,null,null,null,null,null,null,null,null,null,null,null,null,null,null,null,null,null,null,null,null,null,null,null,null,null,null,null,null,null,null,null,null,null,null,null,null,null,null,null,null,null,null,null,null,null,null,null,null,null,null,null,null,null,null,null,null,null,null,null,null,null,null,null,null,null,null,null,null,null,null,null,null,null,null,null,null,null,null,null,null,null,null,null,null,null,null,null,null,null,{"$f":"IF(G10=\"n.a.\",\"n.a.\",(G10-D10)*100)","v":"n.a."},{"$f":"empresa_ccaa!M14-empresa_ccaa!H14","v":{"$error":"#DIV/0!"}},null,{"$f":"IF(JT14=$JT$31,1,0)","v":1},{"$f":"I10","v":0},{"$f":"A10","v":"ARAGON"},{"$f":"G10","v":"n.a."},{"$f":"D10","v":0.25972120140779031}]
["CASTILLA-LA MANCHA",168688039.21485743,206417714.45129341,0.22366538500325928,{"$f":"empresa_ccaa!K19","v":0},{"$f":"empresa_ccaa!L19","v":0},"n.a.",0,0,0,null,0.22366538500325928,0,null,null,null,null,null,null,null,null,null,null,null,null,null,null,null,null,null,null,null,null,null,null,null,null,null,null,null,null,null,null,null,null,null,null,null,null,null,null,null,null,null,null,null,null,null,null,null,null,null,null,null,null,null,null,null,null,null,null,null,null,null,null,null,null,null,null,null,null,null,null,null,null,null,null,null,null,null,null,null,null,null,null,null,null,null,null,null,null,null,null,null,null,null,null,null,null,null,null,null,null,null,null,null,null,null,null,null,null,null,null,null,null,null,null,null,null,null,null,null,null,null,null,null,null,null,null,null,null,null,null,null,null,null,null,null,null,null,null,null,null,null,null,null,null,null,null,null,null,null,null,null,null,null,null,null,null,null,null,null,null,null,null,null,null,null,null,null,null,null,null,null,null,null,null,null,null,null,null,null,null,null,null,null,null,null,null,null,null,null,null,null,null,null,null,null,null,null,null,null,null,null,null,null,null,null,null,null,null,null,null,null,null,null,null,null,null,null,null,null,null,null,null,null,null,null,null,null,null,null,null,null,null,null,null,null,null,null,null,null,null,null,null,null,null,null,null,null,null,null,null,null,null,null,null,null,null,null,null,null,null,null,null,{"$f":"IF(G11=\"n.a.\",\"n.a.\",(G11-D11)*100)","v":"n.a."},{"$f":"empresa_ccaa!M15-empresa_ccaa!H15","v":{"$error":"#DIV/0!"}},null,{"$f":"IF(JT15=$JT$31,1,0)","v":1},{"$f":"I11","v":0},{"$f":"A11","v":"ASTURIAS"},{"$f":"G11","v":"n.a."},{"$f":"D11","v":0.22504247169859259}]
["CASTILLA Y LEÓN",175827895.91959044,179086356.59281161,1.8532102975919784E-2,{"$f":"empresa_ccaa!K20","v":0},{"$f":"empresa_ccaa!L20","v":0},"n.a.",0,0,{"$f":"(I16-H16)*100","v":0},null,1.8532102975919784E-2,0,null,null,null,null,null,null,null,null,null,null,null,null,null,null,null,null,null,null,null,null,null,null,null,null,null,null,null,null,null,null,null,null,null,null,null,null,null,null,null,null,null,null,null,null,null,null,null,null,null,null,null,null,null,null,null,null,null,null,null,null,null,null,null,null,null,null,null,null,null,null,null,null,null,null,null,null,null,null,null,null,null,null,null,null,null,null,null,null,null,null,null,null,null,null,null,null,null,null,null,null,null,null,null,null,null,null,null,null,null,null,null,null,null,null,null,null,null,null,null,null,null,null,null,null,null,null,null,null,null,null,null,null,null,null,null,null,null,null,null,null,null,null,null,null,null,null,null,null,null,null,null,null,null,null,null,null,null,null,null,null,null,null,null,null,null,null,null,null,null,null,null,null,null,null,null,null,null,null,null,null,null,null,null,null,null,null,null,null,null,null,null,null,null,null,null,null,null,null,null,null,null,null,null,null,null,null,null,null,null,null,null,null,null,null,null,null,null,null,null,null,null,null,null,null,null,null,null,null,null,null,null,null,null,null,null,null,null,null,null,null,null,null,null,null,null,null,null,null,null,null,null,null,null,null,null,null,null,null,null,null,null,null,{"$f":"IF(G12=\"n.a.\",\"n.a.\",(G12-D12)*100)","v":"n.a."},{"$f":"empresa_ccaa!M16-empresa_ccaa!H16","v":{"$error":"#DIV/0!"}},null,{"$f":"IF(JT16=$JT$31,1,0)","v":1},{"$f":"I12","v":0},{"$f":"A12","v":"BALEARES"},{"$f":"G12","v":"n.a."},{"$f":"D12","v":0.95832491563425992}]
["CATALUÑA",632199488.97738588,767786738.18219078,0.21446909016665616,{"$f":"empresa_ccaa!K21","v":0},{"$f":"empresa_ccaa!L21","v":0},{"$f":"IF(E17>0,((F17/E17)-1),\"n.a.\")","v":"n.a."},0,0,{"$f":"(I17-H17)*100","v":0},null,0.21446909016665616,0,null,null,null,null,null,null,null,null,null,null,null,null,null,null,null,null,null,null,null,null,null,null,null,null,null,null,null,null,null,null,null,null,null,null,null,null,null,null,null,null,null,null,null,null,null,null,null,null,null,null,null,null,null,null,null,null,null,null,null,null,null,null,null,null,null,null,null,null,null,null,null,null,null,null,null,null,null,null,null,null,null,null,null,null,null,null,null,null,null,null,null,null,null,null,null,null,null,null,null,null,null,null,null,null,null,null,null,null,null,null,null,null,null,null,null,null,null,null,null,null,null,null,null,null,null,null,null,null,null,null,null,null,null,null,null,null,null,null,null,null,null,null,null,null,null,null,null,null,null,null,null,null,null,null,null,null,null,null,null,null,null,null,null,null,null,null,null,null,null,null,null,null,null,null,null,null,null,null,null,null,null,null,null,null,null,null,null,null,null,null,null,null,null,null,null,null,null,null,null,null,null,null,null,null,null,null,null,null,null,null,null,null,null,null,null,null,null,null,null,null,null,null,null,null,null,null,null,null,null,null,null,null,null,null,null,null,null,null,null,null,null,null,null,null,null,null,null,null,null,null,null,null,null,null,null,null,null,null,null,null,null,null,{"$f":"IF(G13=\"n.a.\",\"n.a.\",(G13-D13)*100)","v":"n.a."},{"$f":"empresa_ccaa!M17-empresa_ccaa!H17","v":{"$error":"#DIV/0!"}},null,{"$f":"IF(JT17=$JT$31,1,0)","v":1},{"$f":"I13","v":0},{"$f":"A13","v":"CANARIAS"},{"$f":"G13","v":"n.a."},{"$f":"D13","v":3.3071486061392097E-2}]
["COMUNIDAD VALENCIANA",209750441.76889634,285573523.14285511,0.36149187927575799,{"$f":"empresa_ccaa!K22","v":0},{"$f":"empresa_ccaa!L22","v":0},"n.a.",0,0,{"$f":"(I18-H18)*100","v":0},null,0.36149187927575799,0,null,null,null,null,null,null,null,null,null,null,null,null,null,null,null,null,null,null,null,null,null,null,null,null,null,null,null,null,null,null,null,null,null,null,null,null,null,null,null,null,null,null,null,null,null,null,null,null,null,null,null,null,null,null,null,null,null,null,null,null,null,null,null,null,null,null,null,null,null,null,null,null,null,null,null,null,null,null,null,null,null,null,null,null,null,null,null,null,null,null,null,null,null,null,null,null,null,null,null,null,null,null,null,null,null,null,null,null,null,null,null,null,null,null,null,null,null,null,null,null,null,null,null,null,null,null,null,null,null,null,null,null,null,null,null,null,null,null,null,null,null,null,null,null,null,null,null,null,null,null,null,null,null,null,null,null,null,null,null,null,null,null,null,null,null,null,null,null,null,null,null,null,null,null,null,null,null,null,null,null,null,null,null,null,null,null,null,null,null,null,null,null,null,null,null,null,null,null,null,null,null,null,null,null,null,null,null,null,null,null,null,null,null,null,null,null,null,null,null,null,null,null,null,null,null,null,null,null,null,null,null,null,null,null,null,null,null,null,null,null,null,null,null,null,null,null,null,null,null,null,null,null,null,null,null,null,null,null,null,null,null,null,{"$f":"IF(G14=\"n.a.\",\"n.a.\",(G14-D14)*100)","v":"n.a."},{"$f":"empresa_ccaa!M18-empresa_ccaa!H18","v":{"$error":"#DIV/0!"}},null,{"$f":"IF(JT18=$JT$31,1,0)","v":1},{"$f":"I14","v":0},{"$f":"A14","v":"CANTABRIA"},{"$f":"G14","v":"n.a."},{"$f":"D14","v":0.22065342303566715}]
["EXTREMADURA",30275918.079021357,42863364.721862778,0.41575771905537873,{"$f":"empresa_ccaa!K23","v":0},{"$f":"empresa_ccaa!L23","v":0},"n.a.",0,0,0,null,0.41575771905537873,0,null,null,null,null,null,null,null,null,null,null,null,null,null,null,null,null,null,null,null,null,null,null,null,null,null,null,null,null,null,null,null,null,null,null,null,null,null,null,null,null,null,null,null,null,null,null,null,null,null,null,null,null,null,null,null,null,null,null,null,null,null,null,null,null,null,null,null,null,null,null,null,null,null,null,null,null,null,null,null,null,null,null,null,null,null,null,null,null,null,null,null,null,null,null,null,null,null,null,null,null,null,null,null,null,null,null,null,null,null,null,null,null,null,null,null,null,null,null,null,null,null,null,null,null,null,null,null,null,null,null,null,null,null,null,null,null,null,null,null,null,null,null,null,null,null,null,null,null,null,null,null,null,null,null,null,null,null,null,null,null,null,null,null,null,null,null,null,null,null,null,null,null,null,null,null,null,null,null,null,null,null,null,null,null,null,null,null,null,null,null,null,null,null,null,null,null,null,null,null,null,null,null,null,null,null,null,null,null,null,null,null,null,null,null,null,null,null,null,null,null,null,null,null,null,null,null,null,null,null,null,null,null,null,null,null,null,null,null,null,null,null,null,null,null,null,null,null,null,null,null,null,null,null,null,null,null,null,null,null,null,null,null,{"$f":"IF(G15=\"n.a.\",\"n.a.\",(G15-D15)*100)","v":"n.a."},{"$f":"empresa_ccaa!M19-empresa_ccaa!H19","v":{"$error":"#DIV/0!"}},null,{"$f":"IF(JT19=$JT$31,1,0)","v":1},{"$f":"I15","v":0},{"$f":"A15","v":"CASTILLA-LA MANCHA"},{"$f":"G15","v":"n.a."},{"$f":"D15","v":0.22366538500325928}]
["GALICIA",130404339.17992064,123392668.94048831,-5.3768688093716266E-2,{"$f":"empresa_ccaa!K24","v":0},{"$f":"empresa_ccaa!L24","v":0},"n.a.",0,0,0,null,-5.3768688093716266E-2,0,null,null,null,null,null,null,null,null,null,null,null,null,null,null,null,null,null,null,null,null,null,null,null,null,null,null,null,null,null,null,null,null,null,null,null,null,null,null,null,null,null,null,null,null,null,null,null,null,null,null,null,null,null,null,null,null,null,null,null,null,null,null,null,null,null,null,null,null,null,null,null,null,null,null,null,null,null,null,null,null,null,null,null,null,null,null,null,null,null,null,null,null,null,null,null,null,null,null,null,null,null,null,null,null,null,null,null,null,null,null,null,null,null,null,null,null,null,null,null,null,null,null,null,null,null,null,null,null,null,null,null,null,null,null,null,null,null,null,null,null,null,null,null,null,null,null,null,null,null,null,null,null,null,null,null,null,null,null,null,null,null,null,null,null,null,null,null,null,null,null,null,null,null,null,null,null,null,null,null,null,null,null,null,null,null,null,null,null,null,null,null,null,null,null,null,null,null,null,null,null,null,null,null,null,null,null,null,null,null,null,null,null,null,null,null,null,null,null,null,null,null,null,null,null,null,null,null,null,null,null,null,null,null,null,null,null,null,null,null,null,null,null,null,null,null,null,null,null,null,null,null,null,null,null,null,null,null,null,null,null,null,null,{"$f":"IF(G16=\"n.a.\",\"n.a.\",(G16-D16)*100)","v":"n.a."},{"$f":"empresa_ccaa!M20-empresa_ccaa!H20","v":{"$error":"#DIV/0!"}},null,{"$f":"IF(JT20=$JT$31,1,0)","v":1},{"$f":"I16","v":0},{"$f":"A16","v":"CASTILLA Y LEÓN"},{"$f":"G16","v":"n.a."},{"$f":"D16","v":1.8532102975919784E-2}]
["MADRID",459041624.33965516,515229583.16780877,0.12240275358249186,{"$f":"empresa_ccaa!K25","v":0},{"$f":"empresa_ccaa!L25","v":0},"n.a.",0,0,0,null,0.12240275358249186,0,null,null,null,null,null,null,null,null,null,null,null,null,null,null,null,null,null,null,null,null,null,null,null,null,null,null,null,null,null,null,null,null,null,null,null,null,null,null,null,null,null,null,null,null,null,null,null,null,null,null,null,null,null,null,null,null,null,null,null,null,null,null,null,null,null,null,null,null,null,null,null,null,null,null,null,null,null,null,null,null,null,null,null,null,null,null,null,null,null,null,null,null,null,null,null,null,null,null,null,null,null,null,null,null,null,null,null,null,null,null,null,null,null,null,null,null,null,null,null,null,null,null,null,null,null,null,null,null,null,null,null,null,null,null,null,null,null,null,null,null,null,null,null,null,null,null,null,null,null,null,null,null,null,null,null,null,null,null,null,null,null,null,null,null,null,null,null,null,null,null,null,null,null,null,null,null,null,null,null,null,null,null,null,null,null,null,null,null,null,null,null,null,null,null,null,null,null,null,null,null,null,null,null,null,null,null,null,null,null,null,null,null,null,null,null,null,null,null,null,null,null,null,null,null,null,null,null,null,null,null,null,null,null,null,null,null,null,null,null,null,null,null,null,null,null,null,null,null,null,null,null,null,null,null,null,null,null,null,null,null,null,null,{"$f":"IF(G17=\"n.a.\",\"n.a.\",(G17-D17)*100)","v":"n.a."},{"$f":"empresa_ccaa!M21-empresa_ccaa!H21","v":{"$error":"#DIV/0!"}},null,{"$f":"IF(JT21=$JT$31,1,0)","v":1},{"$f":"I17","v":0},{"$f":"A17","v":"CATALUÑA"},{"$f":"G17","v":"n.a."},{"$f":"D17","v":0.21446909016665616}]
["MURCIA",212469362.07735646,222651457.71386424,4.7922653586170538E-2,{"$f":"empresa_ccaa!K26","v":0},{"$f":"empresa_ccaa!L26","v":0},"n.a.",0,0,0,null,4.7922653586170538E-2,0,null,null,null,null,null,null,null,null,null,null,null,null,null,null,null,null,null,null,null,null,null,null,null,null,null,null,null,null,null,null,null,null,null,null,null,null,null,null,null,null,null,null,null,null,null,null,null,null,null,null,null,null,null,null,null,null,null,null,null,null,null,null,null,null,null,null,null,null,null,null,null,null,null,null,null,null,null,null,null,null,null,null,null,null,null,null,null,null,null,null,null,null,null,null,null,null,null,null,null,null,null,null,null,null,null,null,null,null,null,null,null,null,null,null,null,null,null,null,null,null,null,null,null,null,null,null,null,null,null,null,null,null,null,null,null,null,null,null,null,null,null,null,null,null,null,null,null,null,null,null,null,null,null,null,null,null,null,null,null,null,null,null,null,null,null,null,null,null,null,null,null,null,null,null,null,null,null,null,null,null,null,null,null,null,null,null,null,null,null,null,null,null,null,null,null,null,null,null,null,null,null,null,null,null,null,null,null,null,null,null,null,null,null,null,null,null,null,null,null,null,null,null,null,null,null,null,null,null,null,null,null,null,null,null,null,null,null,null,null,null,null,null,null,null,null,null,null,null,null,null,null,null,null,null,null,null,null,null,null,null,null,null,{"$f":"IF(G18=\"n.a.\",\"n.a.\",(G18-D18)*100)","v":"n.a."},{"$f":"empresa_ccaa!M22-empresa_ccaa!H22","v":{"$error":"#DIV/0!"}},null,{"$f":"IF(JT22=$JT$31,1,0)","v":1},{"$f":"I18","v":0},{"$f":"A18","v":"COMUNIDAD VALENCIANA"},{"$f":"G18","v":"n.a."},{"$f":"D18","v":0.36149187927575799}]
["NAVARRA",76564832.55183062,86448972.507609427,0.12909503784374809,{"$f":"empresa_ccaa!K27","v":0},{"$f":"empresa_ccaa!L27","v":0},"n.a.",0,0,0,null,0.12909503784374809,0,null,null,null,null,null,null,null,null,null,null,null,null,null,null,null,null,null,null,null,null,null,null,null,null,null,null,null,null,null,null,null,null,null,null,null,null,null,null,null,null,null,null,null,null,null,null,null,null,null,null,null,null,null,null,null,null,null,null,null,null,null,null,null,null,null,null,null,null,null,null,null,null,null,null,null,null,null,null,null,null,null,null,null,null,null,null,null,null,null,null,null,null,null,null,null,null,null,null,null,null,null,null,null,null,null,null,null,null,null,null,null,null,null,null,null,null,null,null,null,null,null,null,null,null,null,null,null,null,null,null,null,null,null,null,null,null,null,null,null,null,null,null,null,null,null,null,null,null,null,null,null,null,null,null,null,null,null,null,null,null,null,null,null,null,null,null,null,null,null,null,null,null,null,null,null,null,null,null,null,null,null,null,null,null,null,null,null,null,null,null,null,null,null,null,null,null,null,null,null,null,null,null,null,null,null,null,null,null,null,null,null,null,null,null,null,null,null,null,null,null,null,null,null,null,null,null,null,null,null,null,null,null,null,null,null,null,null,null,null,null,null,null,null,null,null,null,null,null,null,null,null,null,null,null,null,null,null,null,null,null,null,null,{"$f":"IF(G19=\"n.a.\",\"n.a.\",(G19-D19)*100)","v":"n.a."},{"$f":"empresa_ccaa!M23-empresa_ccaa!H23","v":{"$error":"#DIV/0!"}},null,{"$f":"IF(JT23=$JT$31,1,0)","v":1},{"$f":"I19","v":0},{"$f":"A19","v":"EXTREMADURA"},{"$f":"G19","v":"n.a."},{"$f":"D19","v":0.41575771905537873}]
["PAIS VASCO",109955937.53582589,139574424.60320193,0.26936687305063201,{"$f":"empresa_ccaa!K28","v":0},{"$f":"empresa_ccaa!L28","v":0},"n.a.",0,0,0,null,0.26936687305063201,0,null,null,null,null,null,null,null,null,null,null,null,null,null,null,null,null,null,null,null,null,null,null,null,null,null,null,null,null,null,null,null,null,null,null,null,null,null,null,null,null,null,null,null,null,null,null,null,null,null,null,null,null,null,null,null,null,null,null,null,null,null,null,null,null,null,null,null,null,null,null,null,null,null,null,null,null,null,null,null,null,null,null,null,null,null,null,null,null,null,null,null,null,null,null,null,null,null,null,null,null,null,null,null,null,null,null,null,null,null,null,null,null,null,null,null,null,null,null,null,null,null,null,null,null,null,null,null,null,null,null,null,null,null,null,null,null,null,null,null,null,null,null,null,null,null,null,null,null,null,null,null,null,null,null,null,null,null,null,null,null,null,null,null,null,null,null,null,null,null,null,null,null,null,null,null,null,null,null,null,null,null,null,null,null,null,null,null,null,null,null,null,null,null,null,null,null,null,null,null,null,null,null,null,null,null,null,null,null,null,null,null,null,null,null,null,null,null,null,null,null,null,null,null,null,null,null,null,null,null,null,null,null,null,null,null,null,null,null,null,null,null,null,null,null,null,null,null,null,null,null,null,null,null,null,null,null,null,null,null,null,null,null,{"$f":"IF(G20=\"n.a.\",\"n.a.\",(G20-D20)*100)","v":"n.a."},{"$f":"empresa_ccaa!M24-empresa_ccaa!H24","v":{"$error":"#DIV/0!"}},null,{"$f":"IF(JT24=$JT$31,1,0)","v":1},{"$f":"I20","v":0},{"$f":"A20","v":"GALICIA"},{"$f":"G20","v":"n.a."},{"$f":"D20","v":-5.3768688093716266E-2}]
["RIOJA (LA)",25392081.20549421,25541294.14766236,5.8763573163063132E-3,{"$f":"empresa_ccaa!K29","v":0},{"$f":"empresa_ccaa!L29","v":0},"n.a.",0,0,0,null,5.8763573163063132E-3,0,null,null,null,null,null,null,null,null,null,null,null,null,null,null,null,null,null,null,null,null,null,null,null,null,null,null,null,null,null,null,null,null,null,null,null,null,null,null,null,null,null,null,null,null,null,null,null,null,null,null,null,null,null,null,null,null,null,null,null,null,null,null,null,null,null,null,null,null,null,null,null,null,null,null,null,null,null,null,null,null,null,null,null,null,null,null,null,null,null,null,null,null,null,null,null,null,null,null,null,null,null,null,null,null,null,null,null,null,null,null,null,null,null,null,null,null,null,null,null,null,null,null,null,null,null,null,null,null,null,null,null,null,null,null,null,null,null,null,null,null,null,null,null,null,null,null,null,null,null,null,null,null,null,null,null,null,null,null,null,null,null,null,null,null,null,null,null,null,null,null,null,null,null,null,null,null,null,null,null,null,null,null,null,null,null,null,null,null,null,null,null,null,null,null,null,null,null,null,null,null,null,null,null,null,null,null,null,null,null,null,null,null,null,null,null,null,null,null,null,null,null,null,null,null,null,null,null,null,null,null,null,null,null,null,null,null,null,null,null,null,null,null,null,null,null,null,null,null,null,null,null,null,null,null,null,null,null,null,null,null,null,null,{"$f":"IF(G21=\"n.a.\",\"n.a.\",(G21-D21)*100)","v":"n.a."},{"$f":"empresa_ccaa!M25-empresa_ccaa!H25","v":{"$error":"#DIV/0!"}},null,{"$f":"IF(JT25=$JT$31,1,0)","v":1},{"$f":"I21","v":0},{"$f":"A21","v":"MADRID"},{"$f":"G21","v":"n.a."},{"$f":"D21","v":0.12240275358249186}]
[null,null,null,null,null,null,null,null,null,null,null,null,null,null,null,null,null,null,null,null,null,null,null,null,null,null,null,null,null,null,null,null,null,null,null,null,null,null,null,null,null,null,null,null,null,null,null,null,null,null,null,null,null,null,null,null,null,null,null,null,null,null,null,null,null,null,null,null,null,null,null,null,null,null,null,null,null,null,null,null,null,null,null,null,null,null,null,null,null,null,null,null,null,null,null,null,null,null,null,null,null,null,null,null,null,null,null,null,null,null,null,null,null,null,null,null,null,null,null,null,null,null,null,null,null,null,null,null,null,null,null,null,null,null,null,null,null,null,null,null,null,null,null,null,null,null,null,null,null,null,null,null,null,null,null,null,null,null,null,null,null,null,null,null,null,null,null,null,null,null,null,null,null,null,null,null,null,null,null,null,null,null,null,null,null,null,null,null,null,null,null,null,null,null,null,null,null,null,null,null,null,null,null,null,null,null,null,null,null,null,null,null,null,null,null,null,null,null,null,null,null,null,null,null,null,null,null,null,null,null,null,null,null,null,null,null,null,null,null,null,null,null,null,null,null,null,null,null,null,null,null,null,null,null,null,null,null,null,null,null,null,null,null,null,null,null,null,null,null,null,null,null,null,null,null,{"$f":"IF(G22=\"n.a.\",\"n.a.\",(G22-D22)*100)","v":"n.a."},{"$f":"empresa_ccaa!M26-empresa_ccaa!H26","v":{"$error":"#DIV/0!"}},null,{"$f":"IF(JT26=$JT$31,1,0)","v":1},{"$f":"I22","v":0},{"$f":"A22","v":"MURCIA"},{"$f":"G22","v":"n.a."},{"$f":"D22","v":4.7922653586170538E-2}]
[null,null,null,null,null,null,null,null,null,null,null,null,null,null,null,null,null,null,null,null,null,null,null,null,null,null,null,null,null,null,null,null,null,null,null,null,null,null,null,null,null,null,null,null,null,null,null,null,null,null,null,null,null,null,null,null,null,null,null,null,null,null,null,null,null,null,null,null,null,null,null,null,null,null,null,null,null,null,null,null,null,null,null,null,null,null,null,null,null,null,null,null,null,null,null,null,null,null,null,null,null,null,null,null,null,null,null,null,null,null,null,null,null,null,null,null,null,null,null,null,null,null,null,null,null,null,null,null,null,null,null,null,null,null,null,null,null,null,null,null,null,null,null,null,null,null,null,null,null,null,null,null,null,null,null,null,null,null,null,null,null,null,null,null,null,null,null,null,null,null,null,null,null,null,null,null,null,null,null,null,null,null,null,null,null,null,null,null,null,null,null,null,null,null,null,null,null,null,null,null,null,null,null,null,null,null,null,null,null,null,null,null,null,null,null,null,null,null,null,null,null,null,null,null,null,null,null,null,null,null,null,null,null,null,null,null,null,null,null,null,null,null,null,null,null,null,null,null,null,null,null,null,null,null,null,null,null,null,null,null,null,null,null,null,null,null,null,null,null,null,null,null,null,null,null,{"$f":"IF(G23=\"n.a.\",\"n.a.\",(G23-D23)*100)","v":"n.a."},{"$f":"empresa_ccaa!M27-empresa_ccaa!H27","v":{"$error":"#DIV/0!"}},null,{"$f":"IF(JT27=$JT$31,1,0)","v":1},{"$f":"I23","v":0},{"$f":"A23","v":"NAVARRA"},{"$f":"G23","v":"n.a."},{"$f":"D23","v":0.12909503784374809}]
[null,null,null,null,null,null,null,null,null,{"$f":"I6","v":"Cuota de Facturación"},null,null,null,null,null,null,null,null,null,null,null,null,null,null,null,null,null,null,null,null,null,null,null,null,null,null,null,null,null,null,null,null,null,null,null,null,null,null,null,null,null,null,null,null,null,null,null,null,null,null,null,null,null,null,null,null,null,null,null,null,null,null,null,null,null,null,null,null,null,null,null,null,null,null,null,null,null,null,null,null,null,null,null,null,null,null,null,null,null,null,null,null,null,null,null,null,null,null,null,null,null,null,null,null,null,null,null,null,null,null,null,null,null,null,null,null,null,null,null,null,null,null,null,null,null,null,null,null,null,null,null,null,null,null,null,null,null,null,null,null,null,null,null,null,null,null,null,null,null,null,null,null,null,null,null,null,null,null,null,null,null,null,null,null,null,null,null,null,null,null,null,null,null,null,null,null,null,null,null,null,null,null,null,null,null,null,null,null,null,null,null,null,null,null,null,null,null,null,null,null,null,null,null,null,null,null,null,null,null,null,null,null,null,null,null,null,null,null,null,null,null,null,null,null,null,null,null,null,null,null,null,null,null,null,null,null,null,null,null,null,null,null,null,null,null,null,null,null,null,null,null,null,null,null,null,null,null,null,null,null,null,null,null,null,null,{"$f":"IF(G24=\"n.a.\",\"n.a.\",(G24-D24)*100)","v":"n.a."},{"$f":"empresa_ccaa!M28-empresa_ccaa!H28","v":{"$error":"#DIV/0!"}},null,{"$f":"IF(JT28=$JT$31,1,0)","v":1},{"$f":"I24","v":0},{"$f":"A24","v":"PAIS VASCO"},{"$f":"G24","v":"n.a."},{"$f":"D24","v":0.26936687305063201}]
[null,null,null,null,null,null,null,null,null,null,null,null,{"$f":"I7","v":2021},null,null,null,null,null,null,null,null,null,null,null,null,null,null,null,null,null,null,null,null,null,null,null,null,null,null,null,null,null,null,null,null,null,null,null,null,null,null,null,null,null,null,null,null,null,null,null,null,null,null,null,null,null,null,null,null,null,null,null,null,null,null,null,null,null,null,null,null,null,null,null,null,null,null,null,null,null,null,null,null,null,null,null,null,null,null,null,null,null,null,null,null,null,null,null,null,null,null,null,null,null,null,null,null,null,null,null,null,null,null,null,null,null,null,null,null,null,null,null,null,null,null,null,null,null,null,null,null,null,null,null,null,null,null,null,null,null,null,null,null,null,null,null,null,null,null,null,null,null,null,null,null,null,null,null,null,null,null,null,null,null,null,null,null,null,null,null,null,null,null,null,null,null,null,null,null,null,null,null,null,null,null,null,null,null,null,null,null,null,null,null,null,null,null,null,null,null,null,null,null,null,null,null,null,null,null,null,null,null,null,null,null,null,null,null,null,null,null,null,null,null,null,null,null,null,null,null,null,null,null,null,null,null,null,null,null,null,null,null,null,null,null,null,null,null,null,null,null,null,null,null,null,null,null,null,null,null,null,null,null,null,null,{"$f":"IF(G25=\"n.a.\",\"n.a.\",(G25-D25)*100)","v":"n.a."},{"$f":"empresa_ccaa!M29-empresa_ccaa!H29","v":{"$error":"#DIV/0!"}},null,{"$f":"IF(JT29=$JT$31,1,0)","v":1},{"$f":"I25","v":0},{"$f":"A25","v":"RIOJA (LA)"},{"$f":"G25","v":"n.a."},{"$f":"D25","v":5.8763573163063132E-3}]
[null,"% i.a.",null,null,null,"% i.a.",null,null,null,null,null,null,null,null,null,null,null,null,null,null,null,null,null,null,null,null,null,null,null,null,null,null,null,null,null,null,null,null,null,null,null,null,null,null,null,null,null,null,null,null,null,null,null,null,null,null,null,null,null,null,null,null,null,null,null,null,null,null,null,null,null,null,null,null,null,null,null,null,null,null,null,null,null,null,null,null,null,null,null,null,null,null,null,null,null,null,null,null,null,null,null,null,null,null,null,null,null,null,null,null,null,null,null,null,null,null,null,null,null,null,null,null,null,null,null,null,null,null,null,null,null,null,null,null,null,null,null,null,null,null,null,null,null,null,null,null,null,null,null,null,null,null,null,null,null,null,null,null,null,null,null,null,null,null,null,null,null,null,null,null,null,null,null,null,null,null,null,null,null,null,null,null,null,null,null,null,null,null,null,null,null,null,null,null,null,null,null,null,null,null,null,null,null,null,null,null,null,null,null,null,null,null,null,null,null,null,null,null,null,null,null,null,null,null,null,null,null,null,null,null,null,null,null,null,null,null,null,null,null,null,null,null,null,null,null,null,null,null,null,null,null,null,null,null,null,null,null,null,null,null,null,null,null,null,null,null,null,null,null,null,null,null,null,null,null,null,null,null,"codifico=1","máximo"]
[null,{"$f":"C7","v":2021},null,null,null,{"$f":"B31","v":2021},null,null,null,null,null,null,null,null,null,null,null,null,null,null,null,null,null,null,null,null,null,null,null,null,null,null,null,null,null,null,null,null,null,null,null,null,null,null,null,null,null,null,null,null,null,null,null,null,null,null,null,null,null,null,null,null,null,null,null,null,null,null,null,null,null,null,null,null,null,null,null,null,null,null,null,null,null,null,null,null,null,null,null,null,null,null,null,null,null,null,null,null,null,null,null,null,null,null,null,null,null,null,null,null,null,null,null,null,null,null,null,null,null,null,null,null,null,null,null,null,null,null,null,null,null,null,null,null,null,null,null,null,null,null,null,null,null,null,null,null,null,null,null,null,null,null,null,null,null,null,null,null,null,null,null,null,null,null,null,null,null,null,null,null,null,null,null,null,null,null,null,null,null,null,null,null,null,null,null,null,null,null,null,null,null,null,null,null,null,null,null,null,null,null,null,null,null,null,null,null,null,null,null,null,null,null,null,null,null,null,null,null,null,null,null,null,null,null,null,null,null,null,null,null,null,null,null,null,null,null,null,null,null,null,null,null,null,null,null,null,null,null,null,null,null,null,null,null,null,null,null,null,null,null,null,null,null,null,null,null,null,null,null,null,null,null,null,null,null,null,null,null,{"$f":"DMAX(JS12:JU29,JT12,JS12:JS29)*1","v":0},{"$f":"MAX(JT13:JT29)","v":0}]
[null,"Total",null,null,null,"Empresa",null,null,null,{"$f":"J5","v":"iEMPRESA"},null,null,null,null,null,null,null,null,null,null,null,null,null,null,null,null,null,null,null,null,null,null,null,null,null,null,null,null,null,null,null,null,null,null,null,null,null,null,null,null,null,null,null,null,null,null,null,null,null,null,null,null,null,null,null,null,null,null,null,null,null,null,null,null,null,null,null,null,null,null,null,null,null,null,null,null,null,null,null,null,null,null,null,null,null,null,null,null,null,null,null,null,null,null,null,null,null,null,null,null,null,null,null,null,null,null,null,null,null,null,null,null,null,null,null,null,null,null,null,null,null,null,null,null,null,null,null,null,null,null,null,null,null,null,null,null,null,null,null,null,null,null,null,null,null,null,null,null,null,null,null,null,null,null,null,null,null,null,null,null,null,null,null,null,null,null,null,null,null,null,null,null,null,null,null,null,null,null,null,null,null,null,null,null,null,null,null,null,null,null,null,null,null,null,null,null,null,null,null,null,null,null,null,null,null,null,null,null,null,null,null,null,null,null,null,null,null,null,null,null,null,null,null,null,null,null,null,null,null,null,null,null,null,null,null,null,null,null,null,null,null,null,null,null,null,null,null,null,null,null,null,null,null,null,null,null,null,null,null,null,null,null,null,null,null,null,null,"geo data",{"$f":"VLOOKUP(1,JS12:JW29,3,0)","v":"ANDALUCIA"}]
[null,null,null,null,null,null,null,null,null,null,null,null,"Ámbito",null,null,null,null,null,null,null,null,null,null,null,null,null,null,null,null,null,null,null,null,null,null,null,null,null,null,null,null,null,null,null,null,null,null,null,null,null,null,null,null,null,null,null,null,null,null,null,null,null,null,null,null,null,null,null,null,null,null,null,null,null,null,null,null,null,null,null,null,null,null,null,null,null,null,null,null,null,null,null,null,null,null,null,null,null,null,null,null,null,null,null,null,null,null,null,null,null,null,null,null,null,null,null,null,null,null,null,null,null,null,null,null,null,null,null,null,null,null,null,null,null,null,null,null,null,null,null,null,null,null,null,null,null,null,null,null,null,null,null,null,null,null,null,null,null,null,null,null,null,null,null,null,null,null,null,null,null,null,null,null,null,null,null,null,null,null,null,null,null,null,null,null,null,null,null,null,null,null,null,null,null,null,null,null,null,null,null,null,null,null,null,null,null,null,null,null,null,null,null,null,null,null,null,null,null,null,null,null,null,null,null,null,null,null,null,null,null,null,null,null,null,null,null,null,null,null,null,null,null,null,null,null,null,null,null,null,null,null,null,null,null,null,null,null,null,null,null,null,null,null,null,null,null,null,null,null,null,null,null,null,null,null,null,null,null,"el dato a buscar debe estar en la primera columna. "]
["Ámbito",{"$f":"F34","v":"Nacional"},null,null,null,{"$f":"J34","v":"Nacional"},null,null,null,"Nacional",null,null,"Nacional",null,null,null,null,null,null,null,null,null,null,null,null,null,null,null,null,null,null,null,null,null,null,null,null,null,null,null,null,null,null,null,null,null,null,null,null,null,null,null,null,null,null,null,null,null,null,null,null,null,null,null,null,null,null,null,null,null,null,null,null,null,null,null,null,null,null,null,null,null,null,null,null,null,null,null,null,null,null,null,null,null,null,null,null,null,null,null,null,null,null,null,null,null,null,null,null,null,null,null,null,null,null,null,null,null,null,null,null,null,null,null,null,null,null,null,null,null,null,null,null,null,null,null,null,null,null,null,null,null,null,null,null,null,null,null,null,null,null,null,null,null,null,null,null,null,null,null,null,null,null,null,null,null,null,null,null,null,null,null,null,null,null,null,null,null,null,null,null,null,null,null,null,null,null,null,null,null,null,null,null,null,null,null,null,null,null,null,null,null,null,null,null,null,null,null,null,null,null,null,null,null,null,null,null,null,null,null,null,null,null,null,null,null,null,null,null,null,null,null,null,null,null,null,null,null,null,null,null,null,null,null,null,null,null,null,null,null,null,null,null,null,null,null,null,null,null,null,null,null,null,null,null,null,null,null,null,null,null,null,null,null,null,null,null,null,{"$f":"VLOOKUP(1,JS12:JW29,4,0)*1","v":{"$error":"#VALUE!"}}]
[null,null,null,null,null,null,null,null,null,null,null,null,null,null,null,null,null,null,null,null,null,null,null,null,null,null,null,null,null,null,null,null,null,null,null,null,null,null,null,null,null,null,null,null,null,null,null,null,null,null,null,null,null,null,null,null,null,null,null,null,null,null,null,null,null,null,null,null,null,null,null,null,null,null,null,null,null,null,null,null,null,null,null,null,null,null,null,null,null,null,null,null,null,null,null,null,null,null,null,null,null,null,null,null,null,null,null,null,null,null,null,null,null,null,null,null,null,null,null,null,null,null,null,null,null,null,null,null,null,null,null,null,null,null,null,null,null,null,null,null,null,null,null,null,null,null,null,null,null,null,null,null,null,null,null,null,null,null,null,null,null,null,null,null,null,null,null,null,null,null,null,null,null,null,null,null,null,null,null,null,null,null,null,null,null,null,null,null,null,null,null,null,null,null,null,null,null,null,null,null,null,null,null,null,null,null,null,null,null,null,null,null,null,null,null,null,null,null,null,null,null,null,null,null,null,null,null,null,null,null,null,null,null,null,null,null,null,null,null,null,null,null,null,null,null,null,null,null,null,null,null,null,null,null,null,null,null,null,null,null,null,null,null,null,null,null,null,null,null,null,null,null,null,null,null,null,null,null,{"$f":"VLOOKUP(1,JS12:JW29,5,0)*1","v":0.26022049520841772}]
[]
[]
[null,null,null,null,null,null,null,null,null,{"$f":"JS32","v":"ANDALUCIA"},null,null,"CCAA"]
[null,null,null,null,null,null,null,null,null,null,null,null,"Líder para la"]
[null,"% i.a.",null,null,null,"% i.a.",null,null,null,null,null,null,"Empresa"]
[null,{"$f":"B31","v":2021},null,null,null,{"$f":"B41","v":2021}]
[null,"Total",null,null,null,"Empresa",null,null,null,{"$f":"J32","v":"iEMPRESA"}]
[]
["Ámbito",{"$f":"F44","v":"ANDALUCIA"},null,null,null,{"$f":"J44","v":"ANDALUCIA"},null,null,null,{"$f":"J38","v":"ANDALUCIA"}]
[]
[]
[]
["Fuente: Cifras consolidadas del sector. Valores absolutos 2015-2021 y cifras de evolución de 2016 a la fecha. ASEMPLEO ©."]
["Nota de Confidencialidad: Este informe comparativo contiene datos redondeados que son ficticeos y serán reemplazados por los que la Empresa introduzca en \"empresa_ccaa\"."]

{"sheet":"Ayuda y Version","index":1,"n_rows":2,"n_cols":8,"rows_kept":2,"cut":false,"hidden":true,"merged":[]}
[]
[null,null,null,null,null,null,"Versión de plantilla:",2.5]

{"sheet":"pBlock","index":2,"n_rows":5,"n_cols":3,"rows_kept":5,"cut":false,"hidden":true,"merged":[]}
[]
[]
[]
[null,"Block Test"]
[null,"Info1","Info2"]

{"sheet":"pAccel0","index":3,"n_rows":30,"n_cols":42,"rows_kept":30,"cut":false,"hidden":true,"merged":[]}
["Gauge Configuration",null,null,null,null,null,null,null,null,null,null,null,null,null,"Gauge Configuration",null,null,null,null,null,null,null,null,null,null,"Gauge Configuration",null,null,null,null,null,null,null,null,null,null,"Gauge Configuration"]
[null,null,null,null,null,"Decal",null,null,null,null,null,null,null,null,null,null,null,null,null,"Decal",null,null,null,null,null,null,null,null,null,null,"Decal",null,null,null,null,null,null,null,null,null,null,"Decal"]
["Title:",{"$f":"Dashboard!#REF!","v":{"$error":"#REF!"}},null,null,null,0,null,null,null,null,null,null,null,null,"Title:",{"$f":"pAccel0!B3","v":{"$error":"#REF!"}},null,null,null,0,null,null,null,null,null,"Title:","Empresa",null,null,null,0,null,null,null,null,null,"Title:","CCAA",null,null,null,0]
["Real Value:",{"$f":"Dashboard!#REF!","v":{"$error":"#REF!"}},null,null,null,null,null,null,null,null,null,null,null,null,"Real Value:",{"$f":"Dashboard!I8","v":0},null,null,null,null,null,null,null,null,null,"Real Value:",{"$f":"Dashboard!I8","v":0},null,null,null,null,null,null,null,null,null,"Real Value:",{"$f":"Dashboard!JS31","v":0}]
[]
["Color bands",null,null,null,null,null,null,null,null,null,null,null,null,null,"Color bands",null,null,null,null,null,null,null,null,null,null,"Color bands",null,null,null,null,null,null,null,null,null,null,"Color bands"]
["Red:",2,null,null,null,null,null,null,null,null,null,null,null,null,"Red:",2,null,null,null,null,null,null,null,null,null,"Red:",2,null,null,null,null,null,null,null,null,null,"Red:",2]
["Yellow:",15,null,null,null,null,null,null,null,null,null,null,null,null,"Yellow:",15,null,null,null,null,null,null,null,null,null,"Yellow:",15,null,null,null,null,null,null,null,null,null,"Yellow:",15]
["Green:",23,null,null,null,null,null,null,null,null,null,null,null,null,"Green:",23,null,null,null,null,null,null,null,null,null,"Green:",23,null,null,null,null,null,null,null,null,null,"Green:",23]
[]
["Advanced Parameters",null,null,null,null,null,null,null,null,null,null,null,null,null,"Advanced Parameters",null,null,null,null,null,null,null,null,null,null,"Advanced Parameters",null,null,null,null,null,null,null,null,null,null,"Advanced Parameters"]
[null,"Value to 100%",{"$f":"IF(ISERROR((B4-F3/100)*B27),0,(B4-F3/100)*B27)","v":0},null,null,null,null,null,null,null,null,null,null,null,null,"Value to 100%",{"$f":"IF(ISERROR((P4-T3/100)*P27),0,(P4-T3/100)*P27)","v":0},null,null,null,null,null,null,null,null,null,"Value to 100%",{"$f":"IF(ISERROR((AA4-AE3/100)*AA27),0,(AA4-AE3/100)*AA27)","v":0},null,null,null,null,null,null,null,null,null,"Value to 100%",{"$f":"IF(ISERROR((AL4-AP3/100)*AL27),0,(AL4-AP3/100)*AL27)","v":0}]
[null,"Relative value",{"$f":"IF(C12>100%,102%,IF(C12<0%,-2%,C12))*1.506-0.253","v":-0.253},null,null,null,null,null,null,null,null,null,null,null,null,"Relative value",{"$f":"IF(Q12>100%,102%,IF(Q12<0%,-2%,Q12))*1.506-0.253","v":-0.253},null,null,null,null,null,null,null,null,null,"Relative value",{"$f":"IF(AB12>100%,102%,IF(AB12<0%,-2%,AB12))*1.506-0.253","v":-0.253},null,null,null,null,null,null,null,null,null,"Relative value",{"$f":"IF(AM12>100%,102%,IF(AM12<0%,-2%,AM12))*1.506-0.253","v":-0.253}]
[]
["Angle",null,{"$f":"C13*PI()","v":-0.79482294135821763},null,null,null,null,null,null,null,null,null,null,null,"Angle",null,{"$f":"Q13*PI()","v":-0.79482294135821763},null,null,null,null,null,null,null,null,"Angle",null,{"$f":"AB13*PI()","v":-0.79482294135821763},null,null,null,null,null,null,null,null,"Angle",null,{"$f":"AM13*PI()","v":-0.79482294135821763}]
["x",0,{"$f":"-COS(C15)","v":-0.70041115078380645},null,null,null,null,null,null,null,null,null,null,null,"x",0,{"$f":"-COS(Q15)","v":-0.70041115078380645},null,null,null,null,null,null,null,null,"x",0,{"$f":"-COS(AB15)","v":-0.70041115078380645},null,null,null,null,null,null,null,null,"x",0,{"$f":"-COS(AM15)","v":-0.70041115078380645}]
["y",0,{"$f":"SIN(C15)","v":-0.7137396022764213},null,null,null,null,null,null,null,null,null,null,null,"y",0,{"$f":"SIN(Q15)","v":-0.7137396022764213},null,null,null,null,null,null,null,null,"y",0,{"$f":"SIN(AB15)","v":-0.7137396022764213},null,null,null,null,null,null,null,null,"y",0,{"$f":"SIN(AM15)","v":-0.7137396022764213}]
[]
[null,null,null,"Value","Label",null,null,null,null,null,null,null,null,null,null,null,null,"Value","Label",null,null,null,null,null,null,null,null,null,"Value","Label",null,null,null,null,null,null,null,null,null,"Value","Label"]
[null,null,70,10,{"$f":"B26+F3","v":4},null,null,null,null,null,null,null,null,null,null,null,70,10,{"$f":"P26+T3","v":4},null,null,null,null,null,null,null,null,70,10,{"$f":"AA26+AE3","v":4},null,null,null,null,null,null,null,null,70,10,{"$f":"AL26+AP3","v":4}]
[null,null,{"$f":"B7*$C$20/$B$25","v":3.5},10,{"$f":"E20+$B$26","v":8},null,null,null,null,null,null,null,null,null,null,null,{"$f":"P7*$C$20/$B$25","v":3.5},10,{"$f":"S20+$B$26","v":8},null,null,null,null,null,null,null,null,{"$f":"AA7*$AB$20/$AA$25","v":3.5},10,{"$f":"AD20+$AA$26","v":8},null,null,null,null,null,null,null,null,{"$f":"AL7*$AM$20/$AL$25","v":3.5},10,{"$f":"AO20+$AL$26","v":8}]
[null,null,{"$f":"B8*$C$20/$B$25","v":26.25},10,12,null,null,null,null,null,null,null,null,null,null,null,{"$f":"P8*$C$20/$B$25","v":26.25},10,12,null,null,null,null,null,null,null,null,{"$f":"AA8*$AB$20/$AA$25","v":26.25},10,12,null,null,null,null,null,null,null,null,{"$f":"AL8*$AM$20/$AL$25","v":26.25},10,{"$f":"AO21+$AL$26","v":12}]
[null,null,{"$f":"B9*$C$20/$B$25","v":40.25},10,16,null,null,null,null,null,null,null,null,null,null,null,{"$f":"P9*$C$20/$B$25","v":40.25},10,16,null,null,null,null,null,null,null,null,{"$f":"AA9*$AB$20/$AA$25","v":40.25},10,16,null,null,null,null,null,null,null,null,40.25,10,16]
["White",null,23,10,20,null,null,null,null,null,null,null,null,null,"White",null,23,10,20,null,null,null,null,null,null,"White",null,23,10,20,null,null,null,null,null,null,"White",null,23,10,20]
["Total",{"$f":"SUM(B7:B24)","v":40},{"$f":"SUM(C21:C24)","v":93},10,24,null,null,null,null,null,null,null,null,null,"Total",{"$f":"SUM(P7:P24)","v":40},{"$f":"SUM(Q21:Q24)","v":93},10,24,null,null,null,null,null,null,"Total",{"$f":"SUM(AA7:AA24)","v":40},{"$f":"SUM(AB21:AB24)","v":93},10,24,null,null,null,null,null,null,"Total",{"$f":"SUM(AL7:AL24)","v":40},{"$f":"SUM(AM21:AM24)","v":93},10,24]
["Increment",{"$f":"B25/10","v":4},null,10,28,null,null,null,null,null,null,null,null,null,"Increment",{"$f":"P25/10","v":4},null,10,28,null,null,null,null,null,null,"Increment",{"$f":"AA25/10","v":4},null,10,28,null,null,null,null,null,null,"Increment",{"$f":"AL25/10","v":4},null,10,28]
["Conversion",{"$f":"100/B25","v":2.5},null,10,32,null,null,null,null,null,null,null,null,null,"Conversion",{"$f":"100/P25","v":2.5},null,10,32,null,null,null,null,null,null,"Conversion",{"$f":"100/AA25","v":2.5},null,10,32,null,null,null,null,null,null,"Conversion",{"$f":"100/AL25","v":2.5},null,10,32]
[null,null,null,10,36,null,null,null,null,null,null,null,null,null,null,null,null,10,36,null,null,null,null,null,null,null,null,null,10,36,null,null,null,null,null,null,null,null,null,10,36]
[null,null,null,10,40,null,null,null,null,null,null,null,null,null,null,null,null,10,40,null,null,null,null,null,null,null,null,null,10,40,null,null,null,null,null,null,null,null,null,10,40]
[null,null,null,33,{"$f":"F3","v":0},null,null,null,null,null,null,null,null,null,null,null,null,33,{"$f":"T3","v":0},null,null,null,null,null,null,null,null,null,33,{"$f":"AE3","v":0},null,null,null,null,null,null,null,null,null,33,{"$f":"AP3","v":0}]

{"sheet":"pAccel1","index":4,"n_rows":35,"n_cols":64,"rows_kept":35,"cut":false,"hidden":true,"merged":[]}
["Gauge Configuration",null,null,null,null,null,null,null,null,null,null,null,null,null,null,null,"Gauge Configuration",null,null,null,null,null,null,"Gauge Configuration",null,null,null,null,null,null,"Gauge Configuration",null,null,null,null,null,null,"Gauge Configuration",null,null,null,null,null,null,"Gauge Configuration",null,null,null,null,null,null,"Gauge Configuration",null,null,null,null,null,null,"Gauge Configuration"]
[null,null,null,null,null,"Decal",null,null,null,null,null,null,null,null,null,null,null,null,null,null,null,"Decal",null,null,null,null,null,null,"Decal",null,null,null,null,null,null,"Decal",null,null,null,null,null,null,"Decal",null,null,null,null,null,null,"Decal",null,null,null,null,null,null,"Decal",null,null,null,null,null,null,"Decal"]
["Title:","CPDs",null,null,null,100,null,null,null,null,null,null,null,null,null,null,"Title:","Facturación",null,null,null,100,null,"Title:","CPDs",null,null,null,100,null,"Title:","Facturación",null,null,null,100,null,"Title:","Facturación",null,null,null,100,null,"Title:","Facturación",null,null,null,100,null,"Title:","Facturación",null,null,null,100,null,"Title:","Facturación",null,null,null,100]
["Real Value:",{"$f":"Dashboard!#REF!","v":{"$error":"#REF!"}},{"$f":"Dashboard!#REF!","v":{"$error":"#REF!"}},null,null,null,null,null,null,null,null,null,null,null,null,null,"Real Value:",{"$f":"Dashboard!#REF!","v":{"$error":"#REF!"}},null,null,null,null,null,"Real Value:",{"$f":"Dashboard!#REF!","v":{"$error":"#REF!"}},null,null,null,null,null,"Real Value:",{"$f":"Dashboard!#REF!","v":{"$error":"#REF!"}},null,null,null,null,null,"Real Value:",{"$f":"Dashboard!D8","v":0.17893930549378112},null,null,null,null,null,"Real Value:",{"$f":"Dashboard!$G$8","v":"n.a."},null,null,null,null,null,"Real Value:",{"$f":"Dashboard!JS35","v":0.26022049520841772},null,null,null,null,null,"Real Value:",{"$f":"Dashboard!JS34","v":{"$error":"#VALUE!"}}]
[]
["Color bands"]
["Red:",-50]
["Yellow:",0]
["Green:",50]
[]
["Advanced Parameters",null,null,null,null,null,null,null,null,null,null,null,null,null,null,null,"Advanced Parameters",null,null,null,null,null,null,"Advanced Parameters",null,null,null,null,null,null,"Advanced Parameters",null,null,null,null,null,null,"Advanced Parameters",null,null,null,null,null,null,"Advanced Parameters",null,null,null,null,null,null,"Advanced Parameters",null,null,null,null,null,null,"Advanced Parameters"]
[null,"Value to 100%",{"$f":"IF(ISERROR((B4-F3/100)*B27),0,(B4-F3/100)*B27)","v":0},null,{"$f":"IF(ISERROR((C4-F3/100)*B27),0,(C4-F3/100)*B27)","v":0},null,null,null,null,null,null,null,null,null,null,null,null,"Value to 100%",{"$f":"IF(ISERROR((R4-V3/100)*R27),0,(R4-V3/100)*R27)","v":0},null,null,null,null,null,"Value to 100%",{"$f":"IF(ISERROR((Y4-AC3/100)*Y27),0,(Y4-AC3/100)*Y27)","v":0},null,null,null,null,null,"Value to 100%",{"$f":"IF(ISERROR((AF4-AJ3/100)*AF27),0,(AF4-AJ3/100)*AF27)","v":0},null,null,null,null,null,"Value to 100%",{"$f":"IF(ISERROR((AM4-AQ3/100)*AM27),0,(AM4-AQ3/100)*AM27)","v":-1.6421213890124378},null,null,null,null,null,"Value to 100%",{"$f":"IF(ISERROR((AT4-AX3/100)*AT27),0,(AT4-AX3/100)*AT27)","v":0},null,null,null,null,null,"Value to 100%",{"$f":"IF(ISERROR((BA4-BE3/100)*BA27),0,(BA4-BE3/100)*BA27)","v":-1.4795590095831646},null,null,null,null,null,"Value to 100%",{"$f":"IF(ISERROR((BH4-BL3/100)*BH27),0,(BH4-BL3/100)*BH27)","v":0}]
[null,"Relative value",{"$f":"IF(B4<-100%,-100%,IF(B4>100%,100%,2*B4/1))","v":{"$error":"#REF!"}},"ojo1, todo en porcentaje, por 2, y con 1 al final en lugar de 100.",{"$f":"IF(C4<-100%,-100%,IF(C4>100%,100%,2*C4/1))","v":{"$error":"#REF!"}},null,null,null,"Todos los negritas tienen dato 50, en lugar de 100 para que la escala recorra menos. ",null,null,null,null,null,null,null,null,"Relative value",{"$f":"IF(R4<-100%,-100%,IF(R4>100%,100%,2*R4/1))","v":{"$error":"#REF!"}},null,null,null,null,null,"Relative value",{"$f":"IF(Y4<-100%,-100%,IF(Y4>100%,100%,2*Y4/1))","v":{"$error":"#REF!"}},null,null,null,null,null,"Relative value",{"$f":"IF(AF4<-100%,-100%,IF(AF4>100%,100%,2*AF4/1))","v":{"$error":"#REF!"}},null,null,null,null,null,"Relative value",{"$f":"IF(AM4<-100%,-100%,IF(AM4>100%,100%,2*AM4/1))","v":0.35787861098756224},null,null,null,null,null,"Relative value",{"$f":"IF(AT4<-100%,-100%,IF(AT4>100%,100%,2*AT4/1))","v":1},null,null,null,null,null,"Relative value",{"$f":"IF(BA4<-100%,-100%,IF(BA4>100%,100%,2*BA4/1))","v":0.52044099041683545},null,null,null,null,null,"Relative value",{"$f":"IF(BH4<-100%,-100%,IF(BH4>100%,100%,2*BH4/1))","v":{"$error":"#VALUE!"}}]
[]
["Angle",null,{"$f":"C13*PI()/2","v":{"$error":"#REF!"}},null,{"$f":"E13*PI()/2","v":{"$error":"#REF!"}},null,null,null,null,null,null,null,null,null,null,null,"Angle",null,{"$f":"S13*PI()/2","v":{"$error":"#REF!"}},null,null,null,null,"Angle",null,{"$f":"Z13*PI()/2","v":{"$error":"#REF!"}},null,null,null,null,"Angle",null,{"$f":"AG13*PI()/2","v":{"$error":"#REF!"}},null,null,null,null,"Angle",null,{"$f":"AN13*PI()/2","v":0.5621544075777225},null,null,null,null,"Angle",null,{"$f":"AU13*PI()/2","v":1.5707963267948966},null,null,null,null,"Angle",null,{"$f":"BB13*PI()/2","v":0.81750679606026311},null,null,null,null,"Angle",null,{"$f":"BI13*PI()/2","v":{"$error":"#VALUE!"}}]
["x",0,{"$f":"SIN(C15)","v":{"$error":"#REF!"}},{"$f":"B16","v":0},{"$f":"SIN(E15)","v":{"$error":"#REF!"}},null,null,null,null,null,null,null,null,null,null,null,"x",0,{"$f":"SIN(S15)","v":{"$error":"#REF!"}},null,null,null,null,"x",0,{"$f":"SIN(Z15)","v":{"$error":"#REF!"}},null,null,null,null,"x",0,{"$f":"SIN(AG15)","v":{"$error":"#REF!"}},null,null,null,null,"x",0,{"$f":"SIN(AN15)","v":0.53301029659781829},null,null,null,null,"x",0,{"$f":"SIN(AU15)","v":1},null,null,null,null,"x",0,{"$f":"SIN(BB15)","v":0.72944264246313462},null,null,null,null,"x",0,{"$f":"SIN(BI15)","v":{"$error":"#VALUE!"}}]
["y",0,{"$f":"-COS(C15)","v":{"$error":"#REF!"}},{"$f":"B17","v":0},{"$f":"-COS(E15)","v":{"$error":"#REF!"}},null,null,null,null,null,null,null,null,null,null,null,"y",0,{"$f":"-COS(S15)","v":{"$error":"#REF!"}},null,null,null,null,"y",0,{"$f":"-COS(Z15)","v":{"$error":"#REF!"}},null,null,null,null,"y",0,{"$f":"-COS(AG15)","v":{"$error":"#REF!"}},null,null,null,null,"y",0,{"$f":"-COS(AN15)","v":-0.84610875407402908},null,null,null,null,"y",0,{"$f":"-COS(AU15)","v":-6.1257422745431001E-17},null,null,null,null,"y",0,{"$f":"-COS(BB15)","v":-0.68404198069738353},null,null,null,null,"y",0,{"$f":"-COS(BI15)","v":{"$error":"#VALUE!"}}]
[]
[null,null,null,"Value","Label"]
[null,null,50,0,50]
[null,null,{"$f":"E21","v":40},{"$f":"D31/D33","v":5},{"$f":"E20+$B$26","v":40}]
[null,null,{"$f":"E22","v":30},{"$f":"D21","v":5},{"$f":"E21+$B$26","v":30}]
[null,null,20,{"$f":"D22","v":5},20]
["White",null,10,5,10,null,null,null,null,null,null,null,null,null,null,null,"White",null,null,null,null,null,null,"White",null,null,null,null,null,null,"White",null,null,null,null,null,null,"White",null,null,null,null,null,null,"White",null,null,null,null,null,null,"White",null,null,null,null,null,null,"White"]
["Total",50,0,5,0,null,null,null,null,null,null,null,null,null,null,null,"Total",50,null,null,null,null,null,"Total",50,null,null,null,null,null,"Total",50,null,null,null,null,null,"Total",50,null,null,null,null,null,"Total",50,null,null,null,null,null,"Total",50,null,null,null,null,null,"Total",50]
["Increment",-10,-10,5,-10,null,null,null,null,null,null,null,null,null,null,null,"Increment",-10,null,null,null,null,null,"Increment",-10,null,null,null,null,null,"Increment",-10,null,null,null,null,null,"Increment",-10,null,null,null,null,null,"Increment",-10,null,null,null,null,null,"Increment",-10,null,null,null,null,null,"Increment",-10]
["Conversion",{"$f":"100/B25","v":2},-20,5,-20,null,null,null,null,null,null,null,null,null,null,null,"Conversion",{"$f":"100/R25","v":2},null,null,null,null,null,"Conversion",{"$f":"100/Y25","v":2},null,null,null,null,null,"Conversion",{"$f":"100/AF25","v":2},null,null,null,null,null,"Conversion",{"$f":"100/AM25","v":2},null,null,null,null,null,"Conversion",{"$f":"100/AT25","v":2},null,null,null,null,null,"Conversion",{"$f":"100/BA25","v":2},null,null,null,null,null,"Conversion",{"$f":"100/BH25","v":2}]
[null,null,-30,5,-30]
[null,null,-40,5,-40]
[null,null,-50,5,-50]
[null,null,null,50]
[]
[null,null,null,10]
[]
[null,null,null,{"$f":"SUM(D20:D30)","v":50}]

{"sheet":"empresa_ccaa","index":5,"n_rows":137,"n_cols":140,"rows_kept":137,"cut":false,"hidden":false,"merged":[]}
[]
[]
[null,null,null,null,null,null,null,null,null,null,null,null,{"$f":"Dashboard!M3","v":2021}]
[null,null,null,null,null,null,null,null,null,null,null,null,{"$f":"Dashboard!M4","v":"OCTUBRE"}]
[null,null,null,null,null,null,null,null,null,null,"Empresa",{"$f":"L9","v":"iEMPRESA"}]
[]
[]
[]
[null,null,"Facturación, €",null,null,"ASEMPLEO","ASEMPLEO",null,null,null,"Empresa = ","iEMPRESA"]
[null,null,"Dato acumulado a",null,{"$f":"M4","v":"OCTUBRE"},{"$f":"Dashboard!B7","v":2020},{"$f":"Dashboard!C7","v":2021},null,null,"Facturación",{"$f":"F10","v":2020},{"$f":"G10","v":2021}]
[null,null,null,null,null,null,null,"Estructura (%)",null,"Datos acumulados ",null,null,"Estructura (%)",null,null,null,null,null,null,null,null,null,null,null,null,null,null,null,null,null,null,null,null,null,null,null,null,null,null,null,null,null,null,null,null,null,null,null,null,null,null,null,null,null,null,null,null,null,null,null,null,null,null,null,null,null,null,null,null,null,null,null,null,null,null,null,null,null,null,null,null,null,null,null,null,null,null,null,null,null,null,null,null,null,null,null,null,null,null,null,null,null,null,null,null,null,null,null,null,null,null,null,null,null,null,null,null,null,null,null,null,null,null,null,null,null,null,null,null,null,null,null,null,null,null,null,null,null,null,"check"]
[null,null,null,null,null,2787417360.0466928,3286195886.5747566,{"$f":"G12/G$12","v":1},"TOTAL",null,{"$f":"SUM(K13:K29)","v":0},{"$f":"SUM(L13:L29)","v":0},{"$f":"L12/L$12","v":{"$error":"#DIV/0!"}},null,null,null,null,null,null,null,null,null,null,null,null,null,null,null,null,null,null,null,null,null,null,null,null,null,null,null,null,null,null,null,null,null,null,null,null,null,null,null,null,null,null,null,null,null,null,null,null,null,null,null,null,null,null,null,null,null,null,null,null,null,null,null,null,null,null,null,null,null,null,null,null,null,null,null,null,null,null,null,null,null,null,null,null,null,null,null,null,null,null,null,null,null,null,null,null,null,null,null,null,null,null,null,null,null,null,null,null,null,null,null,null,null,null,null,null,null,null,null,null,null,null,null,null,null,null,{"$f":"L12/K12-1","v":{"$error":"#DIV/0!"}}]
[null,null,null,null,null,254583363.06816009,320831171.87758112,{"$f":"G13/G$12","v":9.7629959671085675E-2},"ANDALUCIA",null,null,null,{"$f":"L13/L$12","v":{"$error":"#DIV/0!"}},null,null,null,null,null,null,null,null,null,null,null,null,null,null,null,null,null,null,null,null,null,null,null,null,null,null,null,null,null,null,null,null,null,null,null,null,null,null,null,null,null,null,null,null,null,null,null,null,null,null,null,null,null,null,null,null,null,null,null,null,null,null,null,null,null,null,null,null,null,null,null,null,null,null,null,null,null,null,null,null,null,null,null,null,null,null,null,null,null,null,null,null,null,null,null,null,null,null,null,null,null,null,null,null,null,null,null,null,null,null,null,null,null,null,null,null,null,null,null,null,null,null,null,null,null,null,{"$f":"L13/K13-1","v":{"$error":"#DIV/0!"}}]
[null,null,null,null,null,130608889.6573993,164530787.39375657,{"$f":"G14/G$12","v":5.0067248901966427E-2},"ARAGON",null,null,null,{"$f":"L14/L$12","v":{"$error":"#DIV/0!"}},null,null,null,null,null,null,null,null,null,null,null,null,null,null,null,null,null,null,null,null,null,null,null,null,null,null,null,null,null,null,null,null,null,null,null,null,null,null,null,null,null,null,null,null,null,null,null,null,null,null,null,null,null,null,null,null,null,null,null,null,null,null,null,null,null,null,null,null,null,null,null,null,null,null,null,null,null,null,null,null,null,null,null,null,null,null,null,null,null,null,null,null,null,null,null,null,null,null,null,null,null,null,null,null,null,null,null,null,null,null,null,null,null,null,null,null,null,null,null,null,null,null,null,null,null,null,{"$f":"L14/K14-1","v":{"$error":"#DIV/0!"}}]
[null,null,null,null,null,51537167.056635179,63135218.515403636,{"$f":"G15/G$12","v":1.9212250484924764E-2},"ASTURIAS",null,null,null,{"$f":"L15/L$12","v":{"$error":"#DIV/0!"}},null,null,null,null,null,null,null,null,null,null,null,null,null,null,null,null,null,null,null,null,null,null,null,null,null,null,null,null,null,null,null,null,null,null,null,null,null,null,null,null,null,null,null,null,null,null,null,null,null,null,null,null,null,null,null,null,null,null,null,null,null,null,null,null,null,null,null,null,null,null,null,null,null,null,null,null,null,null,null,null,null,null,null,null,null,null,null,null,null,null,null,null,null,null,null,null,null,null,null,null,null,null,null,null,null,null,null,null,null,null,null,null,null,null,null,null,null,null,null,null,null,null,null,null,null,null,{"$f":"L15/K15-1","v":{"$error":"#DIV/0!"}}]
[null,null,null,null,null,5996077.8241597814,11742268.59913416,3.5732101811414762E-3,"BALEARES",null,null,null,{"$error":"#DIV/0!"},null,null,null,null,null,null,null,null,null,null,null,null,null,null,null,null,null,null,null,null,null,null,null,null,null,null,null,null,null,null,null,null,null,null,null,null,null,null,null,null,null,null,null,null,null,null,null,null,null,null,null,null,null,null,null,null,null,null,null,null,null,null,null,null,null,null,null,null,null,null,null,null,null,null,null,null,null,null,null,null,null,null,null,null,null,null,null,null,null,null,null,null,null,null,null,null,null,null,null,null,null,null,null,null,null,null,null,null,null,null,null,null,null,null,null,null,null,null,null,null,null,null,null,null,null,null,{"$f":"L16/K16-1","v":{"$error":"#DIV/0!"}}]
[null,null,null,null,null,42183954.010675192,43579040.057753637,1.3261242348877936E-2,"CANARIAS",null,null,null,{"$error":"#DIV/0!"},null,null,null,null,null,null,null,null,null,null,null,null,null,null,null,null,null,null,null,null,null,null,null,null,null,null,null,null,null,null,null,null,null,null,null,null,null,null,null,null,null,null,null,null,null,null,null,null,null,null,null,null,null,null,null,null,null,null,null,null,null,null,null,null,null,null,null,null,null,null,null,null,null,null,null,null,null,null,null,null,null,null,null,null,null,null,null,null,null,null,null,null,null,null,null,null,null,null,null,null,null,null,null,null,null,null,null,null,null,null,null,null,null,null,null,null,null,null,null,null,null,null,null,null,null,null,{"$f":"L17/K17-1","v":{"$error":"#DIV/0!"}}]
[null,null,null,null,null,71937947.579828739,87811301.959478334,2.6721262210271088E-2,"CANTABRIA",null,null,null,{"$error":"#DIV/0!"},null,null,null,null,null,null,null,null,null,null,null,null,null,null,null,null,null,null,null,null,null,null,null,null,null,null,null,null,null,null,null,null,null,null,null,null,null,null,null,null,null,null,null,null,null,null,null,null,null,null,null,null,null,null,null,null,null,null,null,null,null,null,null,null,null,null,null,null,null,null,null,null,null,null,null,null,null,null,null,null,null,null,null,null,null,null,null,null,null,null,null,null,null,null,null,null,null,null,null,null,null,null,null,null,null,null,null,null,null,null,null,null,null,null,null,null,null,null,null,null,null,null,null,null,null,null,{"$f":"L18/K18-1","v":{"$error":"#DIV/0!"}}]
[null,null,null,null,null,168688039.21485743,206417714.45129341,6.2813575811040648E-2,"CASTILLA-LA MANCHA",null,null,null,{"$error":"#DIV/0!"},null,null,null,null,null,null,null,null,null,null,null,null,null,null,null,null,null,null,null,null,null,null,null,null,null,null,null,null,null,null,null,null,null,null,null,null,null,null,null,null,null,null,null,null,null,null,null,null,null,null,null,null,null,null,null,null,null,null,null,null,null,null,null,null,null,null,null,null,null,null,null,null,null,null,null,null,null,null,null,null,null,null,null,null,null,null,null,null,null,null,null,null,null,null,null,null,null,null,null,null,null,null,null,null,null,null,null,null,null,null,null,null,null,null,null,null,null,null,null,null,null,null,null,null,null,null,{"$f":"L19/K19-1","v":{"$error":"#DIV/0!"}}]
[null,null,null,null,null,175827895.91959044,179086356.59281161,5.4496555523193595E-2,"CASTILLA Y LEÓN",null,null,null,{"$error":"#DIV/0!"},null,null,null,null,null,null,null,null,null,null,null,null,null,null,null,null,null,null,null,null,null,null,null,null,null,null,null,null,null,null,null,null,null,null,null,null,null,null,null,null,null,null,null,null,null,null,null,null,null,null,null,null,null,null,null,null,null,null,null,null,null,null,null,null,null,null,null,null,null,null,null,null,null,null,null,null,null,null,null,null,null,null,null,null,null,null,null,null,null,null,null,null,null,null,null,null,null,null,null,null,null,null,null,null,null,null,null,null,null,null,null,null,null,null,null,null,null,null,null,null,null,null,null,null,null,null,{"$f":"L20/K20-1","v":{"$error":"#DIV/0!"}}]
[null,null,null,null,null,632199488.97738588,767786738.18219078,0.23363997907698211,"CATALUÑA",null,null,null,{"$f":"L21/L$12","v":{"$error":"#DIV/0!"}},null,null,null,null,null,null,null,null,null,null,null,null,null,null,null,null,null,null,null,null,null,null,null,null,null,null,null,null,null,null,null,null,null,null,null,null,null,null,null,null,null,null,null,null,null,null,null,null,null,null,null,null,null,null,null,null,null,null,null,null,null,null,null,null,null,null,null,null,null,null,null,null,null,null,null,null,null,null,null,null,null,null,null,null,null,null,null,null,null,null,null,null,null,null,null,null,null,null,null,null,null,null,null,null,null,null,null,null,null,null,null,null,null,null,null,null,null,null,null,null,null,null,null,null,null,null,{"$f":"L21/K21-1","v":{"$error":"#DIV/0!"}}]
[null,null,null,null,null,209750441.76889634,285573523.14285511,8.6900943522424029E-2,"COMUNIDAD VALENCIANA",null,null,null,{"$error":"#DIV/0!"},null,null,null,null,null,null,null,null,null,null,null,null,null,null,null,null,null,null,null,null,null,null,null,null,null,null,null,null,null,null,null,null,null,null,null,null,null,null,null,null,null,null,null,null,null,null,null,null,null,null,null,null,null,null,null,null,null,null,null,null,null,null,null,null,null,null,null,null,null,null,null,null,null,null,null,null,null,null,null,null,null,null,null,null,null,null,null,null,null,null,null,null,null,null,null,null,null,null,null,null,null,null,null,null,null,null,null,null,null,null,null,null,null,null,null,null,null,null,null,null,null,null,null,null,null,null,{"$f":"L22/K22-1","v":{"$error":"#DIV/0!"}}]
[null,null,null,null,null,30275918.079021357,42863364.721862778,1.3043460037478107E-2,"EXTREMADURA",null,null,null,{"$error":"#DIV/0!"},null,null,null,null,null,null,null,null,null,null,null,null,null,null,null,null,null,null,null,null,null,null,null,null,null,null,null,null,null,null,null,null,null,null,null,null,null,null,null,null,null,null,null,null,null,null,null,null,null,null,null,null,null,null,null,null,null,null,null,null,null,null,null,null,null,null,null,null,null,null,null,null,null,null,null,null,null,null,null,null,null,null,null,null,null,null,null,null,null,null,null,null,null,null,null,null,null,null,null,null,null,null,null,null,null,null,null,null,null,null,null,null,null,null,null,null,null,null,null,null,null,null,null,null,null,null,{"$f":"L23/K23-1","v":{"$error":"#DIV/0!"}}]
[null,null,null,null,null,130404339.17992064,123392668.94048831,3.7548786864650983E-2,"GALICIA",null,null,null,{"$error":"#DIV/0!"},null,null,null,null,null,null,null,null,null,null,null,null,null,null,null,null,null,null,null,null,null,null,null,null,null,null,null,null,null,null,null,null,null,null,null,null,null,null,null,null,null,null,null,null,null,null,null,null,null,null,null,null,null,null,null,null,null,null,null,null,null,null,null,null,null,null,null,null,null,null,null,null,null,null,null,null,null,null,null,null,null,null,null,null,null,null,null,null,null,null,null,null,null,null,null,null,null,null,null,null,null,null,null,null,null,null,null,null,null,null,null,null,null,null,null,null,null,null,null,null,null,null,null,null,null,null,{"$f":"L24/K24-1","v":{"$error":"#DIV/0!"}}]
[null,null,null,null,null,459041624.33965516,515229583.16780877,0.15678602279088089,"MADRID",null,null,null,{"$error":"#DIV/0!"},null,null,null,null,null,null,null,null,null,null,null,null,null,null,null,null,null,null,null,null,null,null,null,null,null,null,null,null,null,null,null,null,null,null,null,null,null,null,null,null,null,null,null,null,null,null,null,null,null,null,null,null,null,null,null,null,null,null,null,null,null,null,null,null,null,null,null,null,null,null,null,null,null,null,null,null,null,null,null,null,null,null,null,null,null,null,null,null,null,null,null,null,null,null,null,null,null,null,null,null,null,null,null,null,null,null,null,null,null,null,null,null,null,null,null,null,null,null,null,null,null,null,null,null,null,null,{"$f":"L25/K25-1","v":{"$error":"#DIV/0!"}}]
[null,null,null,null,null,212469362.07735646,222651457.71386424,6.7753556208706919E-2,"MURCIA",null,null,null,{"$error":"#DIV/0!"},null,null,null,null,null,null,null,null,null,null,null,null,null,null,null,null,null,null,null,null,null,null,null,null,null,null,null,null,null,null,null,null,null,null,null,null,null,null,null,null,null,null,null,null,null,null,null,null,null,null,null,null,null,null,null,null,null,null,null,null,null,null,null,null,null,null,null,null,null,null,null,null,null,null,null,null,null,null,null,null,null,null,null,null,null,null,null,null,null,null,null,null,null,null,null,null,null,null,null,null,null,null,null,null,null,null,null,null,null,null,null,null,null,null,null,null,null,null,null,null,null,null,null,null,null,null,{"$f":"L26/K26-1","v":{"$error":"#DIV/0!"}}]
[null,null,null,null,null,76564832.55183062,86448972.507609427,2.6306700967152714E-2,"NAVARRA",null,null,null,{"$error":"#DIV/0!"},null,null,null,null,null,null,null,null,null,null,null,null,null,null,null,null,null,null,null,null,null,null,null,null,null,null,null,null,null,null,null,null,null,null,null,null,null,null,null,null,null,null,null,null,null,null,null,null,null,null,null,null,null,null,null,null,null,null,null,null,null,null,null,null,null,null,null,null,null,null,null,null,null,null,null,null,null,null,null,null,null,null,null,null,null,null,null,null,null,null,null,null,null,null,null,null,null,null,null,null,null,null,null,null,null,null,null,null,null,null,null,null,null,null,null,null,null,null,null,null,null,null,null,null,null,null,{"$f":"L27/K27-1","v":{"$error":"#DIV/0!"}}]
[null,null,null,null,null,109955937.53582589,139574424.60320193,4.2472947268119829E-2,"PAIS VASCO",null,null,null,{"$error":"#DIV/0!"},null,null,null,null,null,null,null,null,null,null,null,null,null,null,null,null,null,null,null,null,null,null,null,null,null,null,null,null,null,null,null,null,null,null,null,null,null,null,null,null,null,null,null,null,null,null,null,null,null,null,null,null,null,null,null,null,null,null,null,null,null,null,null,null,null,null,null,null,null,null,null,null,null,null,null,null,null,null,null,null,null,null,null,null,null,null,null,null,null,null,null,null,null,null,null,null,null,null,null,null,null,null,null,null,null,null,null,null,null,null,null,null,null,null,null,null,null,null,null,null,null,null,null,null,null,null,{"$f":"L28/K28-1","v":{"$error":"#DIV/0!"}}]
[null,null,null,null,null,25392081.20549421,25541294.14766236,7.7722981311026994E-3,"RIOJA (LA)",null,null,null,{"$error":"#DIV/0!"},null,null,null,null,null,null,null,null,null,null,null,null,null,null,null,null,null,null,null,null,null,null,null,null,null,null,null,null,null,null,null,null,null,null,null,null,null,null,null,null,null,null,null,null,null,null,null,null,null,null,null,null,null,null,null,null,null,null,null,null,null,null,null,null,null,null,null,null,null,null,null,null,null,null,null,null,null,null,null,null,null,null,null,null,null,null,null,null,null,null,null,null,null,null,null,null,null,null,null,null,null,null,null,null,null,null,null,null,null,null,null,null,null,null,null,null,null,null,null,null,null,null,null,null,null,null,{"$f":"L29/K29-1","v":{"$error":"#DIV/0!"}}]
[]
["Fuente: Cifras consolidadas del sector. ASEMPLEO ©."]
["Nota de Confidencialidad: Este informe comparativo se genera con los datos propios de la Empresa. "]
[]
[]
[]
[]
[]
[]
[]
[]
[]
[]
[]
[]
[]
[]
[]
[]
[]
[]
[]
[]
[]
[]
[]
[]
[]
[]
[]
[]
[]
[]
[]
[]
[]
[]
[]
[]
[]
[]
[]
[]
[]
[]
[]
[]
[]
[]
[]
[]
[]
[]
[]
[]
[]
[]
[]
[]
[]
[]
[]
[]
[]
[]
[]
[]
[]
[]
[]
[]
[]
[]
[]
[]
[]
[]
[]
[]
[]
[]
[]
[]
[]
["D03: ",null,null,"D03: ",null,null,"D03 : ","Variación Interanual (%)"]
["MES:","ACUMULADO A LA FECHA",null,{"$f":"A115","v":"MES:"},{"$f":"B115","v":"ACUMULADO A LA FECHA"},null,{"$f":"D115","v":"MES:"},"Tasa % i.a."]
[]
[null,"Facturación",null,null,"Facturación",null,null,"Facturación"]
[null,null,null,null,null,null,null,null,"check"]
["TOTAL",3286195886.5747566,null,"TOTAL",2787417360.0466928,null,"TOTAL",0.17893930549378101,{"$f":"B119/E119-1","v":0.17893930549378112}]
["ANDALUCIA",320831171.87758112,null,"ANDALUCIA",254583363.06816009,null,"ANDALUCIA",0.26022049520841772,{"$f":"B120/E120-1","v":0.26022049520841772}]
["ARAGON",164530787.39375657,null,"ARAGON",130608889.6573993,null,"ARAGON",0.25972120140779031,0.25972120140779031]
["ASTURIAS",63135218.515403636,null,"ASTURIAS",51537167.056635179,null,"ASTURIAS",0.22504247169859259,0.22504247169859259]
["BALEARES",11742268.59913416,null,"BALEARES",5996077.8241597814,null,"BALEARES",0.95832491563425992,0.95832491563425992]
["CANARIAS",43579040.057753637,null,"CANARIAS",42183954.010675192,null,"CANARIAS",3.3071486061392097E-2,3.3071486061392097E-2]
["CANTABRIA",87811301.959478334,null,"CANTABRIA",71937947.579828739,null,"CANTABRIA",0.22065342303566715,0.22065342303566715]
["CASTILLA-LA MANCHA",206417714.45129341,null,"CASTILLA-LA MANCHA",168688039.21485743,null,"CASTILLA-LA MANCHA",0.22366538500325928,0.22366538500325928]
["CASTILLA Y LEÓN",179086356.59281161,null,"CASTILLA Y LEÓN",175827895.91959044,null,"CASTILLA Y LEÓN",1.8532102975919784E-2,1.8532102975919784E-2]
["CATALUÑA",767786738.18219078,null,"CATALUÑA",632199488.97738588,null,"CATALUÑA",0.21446909016665616,0.21446909016665616]
["COMUNIDAD VALENCIANA",285573523.14285511,null,"COMUNIDAD VALENCIANA",209750441.76889634,null,"COMUNIDAD VALENCIANA",0.36149187927575799,0.36149187927575799]
["EXTREMADURA",42863364.721862778,null,"EXTREMADURA",30275918.079021357,null,"EXTREMADURA",0.41575771905537873,0.41575771905537873]
["GALICIA",123392668.94048831,null,"GALICIA",130404339.17992064,null,"GALICIA",-5.3768688093716266E-2,-5.3768688093716266E-2]
["MADRID",515229583.16780877,null,"MADRID",459041624.33965516,null,"MADRID",0.12240275358249186,0.12240275358249186]
["MURCIA",222651457.71386424,null,"MURCIA",212469362.07735646,null,"MURCIA",4.7922653586170538E-2,4.7922653586170538E-2]
["NAVARRA",86448972.507609427,null,"NAVARRA",76564832.55183062,null,"NAVARRA",0.12909503784374809,0.12909503784374809]
["PAIS VASCO",139574424.60320193,null,"PAIS VASCO",109955937.53582589,null,"PAIS VASCO",0.26936687305063201,0.26936687305063201]
["RIOJA (LA)",25541294.14766236,null,"RIOJA (LA)",25392081.20549421,null,"RIOJA (LA)",5.8763573163063132E-3,{"$f":"B136/E136-1","v":5.8763573163063132E-3}]
["Ceuta y Melilla",null,null,"Ceuta y Melilla",null,null,"Ceuta y Melilla"]